bitfinex/quotes_SOLUSD_20251119
["timestamp","ask_amount","ask_price","bid_price","bid_amount"]
[1763521517315,18.5687635,142.58,142.55,0.1]
[1763521517316,9.78882769,142.58,142.55,0.1]
[1763521517707,10.44882769,142.58,142.55,0.1]
[1763521519533,4.18,142.59,142.55,9.54993581]
[1763521519839,4.18,142.59,142.56,8.77993581]
[1763521520019,4.18,142.59,142.56,9.44993581]
[1763521520219,4.84,142.59,142.56,8.77993581]
[1763521521248,4.84,142.59,142.55,8.87993581]
[1763521521532,4.84,142.59,142.56,8.77993581]
[1763521522117,0.66,142.59,142.56,8.77993581]
[1763521522309,0.66,142.59,142.55,9.54993581]
[1763521522735,0.66,142.59,142.55,0.1]
[1763521523420,0.66,142.59,142.55,8.87993581]
[1763521524125,0.66,142.59,142.55,0.1]
[1763521525347,9.78882769,142.58,142.55,0.1]
[1763521525521,18.5687635,142.58,142.55,0.1]
[1763521525851,22.30096,142.6,142.56,8.77993581]
[1763521526217,22.99096,142.6,142.57,8.77993581]
[1763521526737,4.18,142.6,142.57,9.46993581]
[1763521527545,26.90089581,142.62,142.58,8.77993581]
[1763521527546,18.12096,142.62,142.58,8.77993581]
[1763521527746,22.30096,142.62,142.58,9.46993581]
[1763521527914,22.99096,142.62,142.58,9.46993581]
[1763521528115,0.69,142.61,142.58,8.77993581]
[1763521528345,0.69,142.61,142.57,8.77993581]
[1763521528525,0.69,142.61,142.56,0.69]
[1763521528716,0.69,142.61,142.57,8.77993581]
[1763521528916,19.2587635,142.61,142.56,8.77993581]
[1763521529341,0.69,142.6,142.56,8.77993581]
[1763521530145,0.69,142.6,142.57,8.77993581]
[1763521531244,9.78882769,142.61,142.57,9.46993581]
[1763521531443,10.47882769,142.61,142.57,9.46993581]
[1763521531743,0.69,142.6,142.57,8.77993581]
[1763521531934,0.69,142.6,142.56,8.77993581]
[1763521532459,0.69,142.6,142.55,13.74993581]
[1763521532849,0.69,142.6,142.55,8.52317041]
[1763521533547,4.87,142.6,142.56,3.55317041]
[1763521533925,0.69,142.59,142.56,3.55317041]
[1763521534344,4.18,142.6,142.56,3.55317041]
[1763521534544,4.87,142.6,142.56,4.24317041]
[1763521534843,0.69,142.59,142.56,4.24317041]
[1763521535021,0.69,142.59,142.56,3.55317041]
[1763521536527,4.18,142.6,142.56,4.24317041]
[1763521536825,4.87,142.6,142.57,3.55317041]
[1763521537947,0.69,142.59,142.57,3.55317041]
[1763521538565,0.69,142.59,142.56,3.55317041]
[1763521538731,4.87,142.6,142.56,4.24317041]
[1763521539050,4.18,142.6,142.56,4.24317041]
[1763521539253,0.66,142.59,142.55,4.35317041]
[1763521539935,0.66,142.59,142.56,3.55317041]
[1763521540141,0.66,142.59,142.55,4.35317041]
[1763521541028,0.66,142.59,142.55,0.8]
[1763521541332,4.21317041,142.59,142.55,0.1]
[1763521541525,0.66,142.58,142.55,0.1]
[1763521546152,4.18,142.6,142.56,4.27317041]
[1763521546153,5.39147253,142.6,142.56,4.27317041]
[1763521546345,5.39147253,142.59,142.56,4.27317041]
[1763521546545,0.68,142.59,142.55,0.1]
[1763521546850,0.68,142.58,142.55,2.37406274]
[1763521547050,0.68,142.58,142.55,3.09406274]
[1763521547833,4.73330262,142.59,142.55,3.09406274]
[1763521548039,5.41330262,142.59,142.55,3.09406274]
[1763521548259,0.68,142.59,142.55,3.09406274]
[1763521548460,0.68,142.58,142.55,3.09406274]
[1763521549758,0.68,142.58,142.55,2.37406274]
[1763521550054,5.41681582,142.58,142.55,0.1]
[1763521550239,12.06289043,142.57,142.55,0.1]
[1763521550441,16.24289043,142.56,142.55,0.1]
[1763521550648,21.66377689,142.56,142.55,0.1]
[1763521550849,9.78882769,142.55,142.48,3.09406274]
[1763521551048,2.27406274,142.53,142.48,2.37406274]
[1763521551252,11.19139623,142.53,142.48,2.37406274]
[1763521551445,0.68,142.52,142.48,2.37406274]
[1763521551960,2.27406274,142.51,142.48,0.1]
[1763521552167,2.27406274,142.5,142.48,0.1]
[1763521552467,22.30096,142.53,142.48,0.1]
[1763521552468,2.95406274,142.51,142.48,0.1]
[1763521552644,2.27406274,142.51,142.48,0.1]
[1763521552839,0.68,142.5,142.48,0.1]
[1763521553286,12.06289043,142.49,142.48,0.1]
[1763521553638,12.74289043,142.49,142.48,0.1]
[1763521555737,18.12096,142.46,142.43,0.1]
[1763521555944,9.78882769,142.42,142.4,0.1]
[1763521556297,27.90978769,142.37,142.34,3.66942279]
[1763521556444,34.36385043,142.37,142.34,3.66942279]
[1763521556638,35.04385043,142.37,142.34,3.66942279]
[1763521558752,38.05327573,142.37,142.34,3.66942279]
[1763521560451,32.76978769,142.37,142.34,3.66942279]
[1763521560647,38.05327573,142.37,142.34,3.66942279]
[1763521560980,27.90978769,142.33,142.28,0.1]
[1763521561296,27.90978769,142.29,142.28,0.1]
[1763521561467,37.37327573,142.29,142.28,0.1]
[1763521561675,38.05327573,142.29,142.24,0.2]
[1763521561867,33.19327573,142.25,142.24,0.2]
[1763521562052,37.37327573,142.25,142.24,0.2]
[1763521562252,38.05327573,142.25,142.24,0.2]
[1763521563179,32.76978769,142.25,142.24,0.2]
[1763521563473,38.05327573,142.25,142.24,0.2]
[1763521565255,32.76978769,142.25,142.24,0.2]
[1763521565480,38.05327573,142.25,142.24,0.2]
[1763521566184,33.19327573,142.22,142.21,0.1]
[1763521566359,37.37327573,142.22,142.21,0.1]
[1763521566556,38.05327573,142.22,142.21,0.1]
[1763521567061,27.90978769,142.19,142.17,0.2]
[1763521567262,33.19327573,142.19,142.17,0.2]
[1763521567466,9.78882769,142.18,142.17,0.2]
[1763521567660,15.75231573,142.18,142.17,0.2]
[1763521567979,19.93231573,142.18,142.17,0.2]
[1763521568186,15.75231573,142.18,142.17,0.2]
[1763521568376,19.95231573,142.18,142.17,0.2]
[1763521568576,38.07327573,142.18,142.17,0.2]
[1763521568890,33.87327573,142.18,142.17,0.2]
[1763521569069,28.58978769,142.18,142.17,0.2]
[1763521569268,27.90978769,142.18,142.17,0.2]
[1763521569478,38.07327573,142.18,142.17,0.2]
[1763521569796,38.07327573,142.18,142.16,0.2]
[1763521569797,15.07231573,142.17,142.16,0.2]
[1763521569972,18.12096,142.14,142.13,0.2]
[1763521570170,37.39327573,142.14,142.13,0.2]
[1763521570699,37.49327573,142.14,142.13,0.2]
[1763521571307,27.90978769,142.1,142.09,1.93593088]
[1763521571596,37.49327573,142.1,142.09,1.93593088]
[1763521571889,37.39327573,142.1,142.09,1.93593088]
[1763521572194,33.19327573,142.1,142.09,1.93593088]
[1763521572362,27.90978769,142.1,142.09,1.93593088]
[1763521572564,25.11978769,142.1,142.09,7.91941892]
[1763521572771,4.2,142.15,142.09,7.91941892]
[1763521572986,13.98882769,142.15,142.14,5.28348804]
[1763521573178,9.78882769,142.14,142.13,5.28348804]
[1763521573380,9.78882769,142.14,142.09,2.63593088]
[1763521573593,9.78882769,142.14,142.11,5.28348804]
[1763521573594,9.78882769,142.12,142.11,5.28348804]
[1763521573776,13.98882769,142.12,142.1,5.28348804]
[1763521574108,14.68882769,142.12,142.09,1.93593088]
[1763521574402,9.78882769,142.1,142.09,1.93593088]
[1763521574700,28.60978769,142.1,142.09,1.93593088]
[1763521574873,33.89327573,142.1,142.09,1.93593088]
[1763521575070,28.60978769,142.1,142.09,1.93593088]
[1763521575670,32.80978769,142.1,142.09,1.93593088]
[1763521576471,32.10978769,142.1,142.09,1.93593088]
[1763521576995,32.80978769,142.1,142.09,1.93593088]
[1763521579700,19.97231573,142.1,142.09,1.93593088]
[1763521581712,19.97231573,142.1,142.07,0.2]
[1763521581917,9.78882769,142.07,142.05,0.2]
[1763521582204,19.27231573,142.06,142.05,0.2]
[1763521582568,19.95231573,142.06,142.05,0.2]
[1763521582979,9.78882769,142.06,142.05,0.2]
[1763521583185,32.10978769,142.06,142.05,0.2]
[1763521585185,27.90978769,142.06,142.05,0.2]
[1763521585388,32.10978769,142.06,142.05,0.2]
[1763521589170,19.95231573,142.06,142.05,0.2]
[1763521594491,14.66882769,142.06,142.05,0.2]
[1763521594703,19.95231573,142.06,142.05,0.2]
[1763521595502,15.75231573,142.06,142.05,0.2]
[1763521595784,19.95231573,142.06,142.05,0.2]
[1763521596694,15.07231573,142.05,142.04,0.2]
[1763521596879,33.87327573,142.05,142.04,0.2]
[1763521597190,33.87327573,142.05,141.97,0.41]
[1763521597506,9.78882769,142.0,141.96,5.28348804]
[1763521597722,9.78882769,142.0,141.95,0.41]
[1763521597723,4.2,141.99,141.95,5.69348804]
[1763521598030,4.2,141.99,141.96,5.28348804]
[1763521598724,4.2,141.99,141.97,0.41]
[1763521598898,9.78882769,141.98,141.97,5.69348804]
[1763521600300,9.78882769,142.0,141.97,5.69348804]
[1763521600506,9.78882769,141.98,141.97,5.69348804]
[1763521601199,4.2,141.98,141.97,5.69348804]
[1763521601713,9.78882769,142.0,141.97,5.69348804]
[1763521601909,9.78882769,141.98,141.97,0.41]
[1763521602105,9.78882769,141.98,141.97,5.69348804]
[1763521603323,9.78882769,141.98,141.97,0.41]
[1763521603536,9.78882769,141.98,141.97,5.69348804]
[1763521604914,9.78882769,141.98,141.97,0.41]
[1763521605121,9.78882769,141.98,141.97,5.28348804]
[1763521605530,9.78882769,141.98,141.97,5.69348804]
[1763521606112,9.78882769,141.98,141.97,0.41]
[1763521606311,9.78882769,141.98,141.97,5.69348804]
[1763521607032,9.78882769,141.98,141.97,9.28276754]
[1763521607428,9.78882769,141.98,141.9,0.1]
[1763521607632,9.78882769,141.98,141.97,8.87276754]
[1763521608333,9.78882769,141.98,141.97,9.28276754]
[1763521609406,9.78882769,141.98,141.97,8.87276754]
[1763521612117,9.78882769,141.98,141.97,9.28276754]
[1763521612319,18.12096,142.01,141.97,9.28276754]
[1763521612514,9.78882769,142.0,141.98,0.41]
[1763521612828,9.78882769,142.0,141.99,8.87276754]
[1763521613209,9.78882769,142.0,141.99,9.28276754]
[1763521613403,9.78882769,142.0,141.99,8.87276754]
[1763521614326,4.2,142.01,141.99,9.28276754]
[1763521614630,9.78882769,142.06,142.0,9.28276754]
[1763521614822,9.78882769,142.06,142.03,8.87276754]
[1763521615131,4.2,142.05,142.01,0.41]
[1763521615434,4.2,142.05,142.03,8.87276754]
[1763521615818,13.98882769,142.05,142.04,0.41]
[1763521616018,13.98882769,142.05,142.04,9.28276754]
[1763521616426,9.78882769,142.05,142.03,8.87276754]
[1763521617637,106.3,142.15,142.04,9.28276754]
[1763521617847,9.78882769,142.06,142.05,8.87276754]
[1763521618026,13.98882769,142.06,142.05,8.87276754]
[1763521618217,13.98882769,142.06,142.04,9.28276754]
[1763521618539,9.78882769,142.06,142.04,9.28276754]
[1763521618923,4.2,142.07,142.05,9.28276754]
[1763521619112,9.78882769,142.02,141.98,0.41]
[1763521619322,9.78882769,142.02,141.99,8.87276754]
[1763521619515,9.78882769,142.0,141.97,8.87276754]
[1763521619712,9.78882769,142.0,141.96,9.28276754]
[1763521619933,9.78882769,142.0,141.97,8.87276754]
[1763521620141,9.78882769,141.98,141.96,8.87276754]
[1763521620441,13.98882769,141.98,141.96,8.87276754]
[1763521620622,9.78882769,141.96,141.92,8.87276754]
[1763521620942,9.78882769,141.96,141.93,8.87276754]
[1763521621135,32.10978769,141.96,141.93,9.28276754]
[1763521621626,32.79978769,141.96,141.91,0.41]
[1763521621829,32.79978769,141.96,141.92,8.87276754]
[1763521622047,32.79978769,141.96,141.94,8.87276754]
[1763521622048,32.10978769,141.96,141.94,8.87276754]
[1763521622341,32.10978769,141.96,141.93,8.87276754]
[1763521622342,28.59978769,141.96,141.93,8.87276754]
[1763521622512,32.79978769,141.96,141.93,8.87276754]
[1763521624349,32.10978769,141.96,141.93,8.87276754]
[1763521624644,2.0,142.05,141.93,8.87276754]
[1763521624645,9.78882769,141.97,141.94,8.87276754]
[1763521624940,9.78882769,142.0,141.96,8.87276754]
[1763521625149,4.2,141.99,141.96,8.87276754]
[1763521625350,4.89,141.99,141.96,8.87276754]
[1763521626141,4.2,141.99,141.95,8.87276754]
[1763521626351,9.78882769,141.97,141.95,8.87276754]
[1763521627052,13.98882769,141.97,141.93,8.87276754]
[1763521627236,0.69,141.96,141.92,8.87276754]
[1763521627420,9.78882769,141.95,141.92,8.87276754]
[1763521627630,9.78882769,141.95,141.93,8.87276754]
[1763521627950,13.98882769,141.97,141.93,8.87276754]
[1763521628150,14.67882769,141.97,141.93,8.87276754]
[1763521628338,9.78882769,141.95,141.92,9.28276754]
[1763521628936,9.78882769,141.95,141.92,8.87276754]
[1763521629250,9.78882769,141.96,141.92,9.28276754]
[1763521629548,10.47882769,141.96,141.92,9.28276754]
[1763521629749,10.47882769,141.96,141.93,8.87276754]
[1763521629953,9.78882769,141.96,141.93,9.28276754]
[1763521630125,10.47882769,141.96,141.92,8.87276754]
[1763521630749,10.47882769,141.96,141.92,9.28276754]
[1763521631046,10.47882769,141.96,141.9,0.1]
[1763521631224,9.78882769,141.96,141.93,8.87276754]
[1763521631660,10.47882769,141.96,141.93,8.87276754]
[1763521632149,9.78882769,141.96,141.94,9.28276754]
[1763521632645,9.78882769,141.96,141.94,8.87276754]
[1763521632959,18.12096,141.93,141.9,0.1]
[1763521633165,9.78882769,141.91,141.9,0.1]
[1763521633632,10.50882769,141.91,141.9,0.1]
[1763521633833,9.78882769,141.91,141.9,0.1]
[1763521634017,10.50882769,141.91,141.9,0.1]
[1763521634428,9.78882769,141.91,141.9,0.1]
[1763521636245,10.50882769,141.91,141.9,0.1]
[1763521636658,14.70882769,141.91,141.9,0.1]
[1763521637667,23.58159523,141.91,141.9,0.1]
[1763521637868,23.58159523,141.91,141.85,8.87276754]
[1763521638056,23.58159523,141.91,141.8,2.03593088]
[1763521638057,9.78882769,141.87,141.81,9.38276754]
[1763521638234,9.78882769,141.87,141.82,8.87276754]
[1763521638235,4.2,141.86,141.82,8.87276754]
[1763521638435,4.2,141.86,141.83,8.87276754]
[1763521638750,9.78882769,141.87,141.84,8.87276754]
[1763521639152,9.78882769,141.87,141.84,9.38276754]
[1763521639533,9.78882769,141.87,141.84,8.87276754]
[1763521639730,9.78882769,141.87,141.84,9.38276754]
[1763521639954,4.2,141.89,141.86,8.87276754]
[1763521640260,0.72,141.95,141.88,8.87276754]
[1763521640460,13.98882769,141.94,141.9,8.87276754]
[1763521640759,32.10978769,141.94,141.91,8.87276754]
[1763521641257,32.82978769,141.94,141.9,8.87276754]
[1763521641463,4.2,141.94,141.92,8.87276754]
[1763521641644,0.72,141.96,141.92,8.87276754]
[1763521641843,9.78882769,141.95,141.92,8.87276754]
[1763521642961,9.78882769,141.95,141.91,0.51]
[1763521642962,0.68,141.94,141.91,8.87276754]
[1763521643146,9.55276754,142.03,141.93,8.87276754]
[1763521643338,4.9,142.03,141.99,8.87276754]
[1763521643538,18.12096,142.01,141.98,8.87276754]
[1763521644065,9.78882769,142.0,141.98,8.87276754]
[1763521644454,9.78882769,142.0,141.96,0.51]
[1763521644455,10.46882769,142.02,141.99,8.87276754]
[1763521644765,10.46882769,142.02,141.96,0.51]
[1763521644766,10.46882769,142.02,141.98,8.87276754]
[1763521645067,9.78882769,141.98,141.89,0.51]
[1763521645239,9.78882769,141.95,141.89,0.51]
[1763521645561,9.78882769,141.96,141.93,8.87276754]
[1763521646564,10.46882769,141.96,141.93,8.87276754]
[1763521647370,0.68,141.99,141.94,9.38276754]
[1763521647661,22.88159523,142.0,141.95,0.51]
[1763521647864,0.68,141.99,141.95,8.87276754]
[1763521648457,4.22,142.0,141.97,8.87276754]
[1763521648650,9.78882769,142.01,141.98,8.87276754]
[1763521649246,9.78882769,142.01,141.99,8.87276754]
[1763521651751,22.34096,142.03,142.0,8.87276754]
[1763521651752,9.78882769,142.02,142.0,8.87276754]
[1763521652770,0.68,142.01,141.94,0.51]
[1763521653075,0.68,142.01,141.96,8.87276754]
[1763521653967,9.78882769,141.99,141.95,8.87276754]
[1763521654168,27.67372754,142.01,141.95,8.87276754]
[1763521654471,9.78882769,141.99,141.95,8.87276754]
[1763521654865,10.46882769,141.99,141.95,8.87276754]
[1763521655248,10.46882769,141.99,141.95,9.38276754]
[1763521655567,10.46882769,141.99,141.95,8.87276754]
[1763521655757,10.46882769,141.99,141.95,9.38276754]
[1763521657774,9.78882769,141.99,141.96,8.87276754]
[1763521657949,0.68,141.98,141.96,8.87276754]
[1763521658149,9.78882769,141.99,141.96,8.87276754]
[1763521658350,10.46882769,141.99,141.95,8.87276754]
[1763521658643,9.78882769,141.97,141.93,8.87276754]
[1763521658848,9.78882769,141.97,141.91,8.87276754]
[1763521658849,22.86159523,141.97,141.91,8.87276754]
[1763521659067,18.66159523,141.93,141.88,8.87276754]
[1763521659256,22.86159523,141.93,141.87,8.87276754]
[1763521659571,19.34159523,141.93,141.87,8.87276754]
[1763521659747,0.68,141.92,141.86,0.51]
[1763521659953,9.78882769,141.91,141.87,8.87276754]
[1763521660174,9.78882769,141.89,141.85,8.87276754]
[1763521660374,9.78882769,141.89,141.84,9.38276754]
[1763521660551,0.68,141.88,141.84,9.38276754]
[1763521661449,0.68,141.88,141.84,8.87276754]
[1763521662251,9.78882769,141.9,141.85,0.51]
[1763521662464,9.78882769,141.9,141.86,8.87276754]
[1763521662664,10.50882769,141.9,141.86,8.87276754]
[1763521662846,9.78882769,141.9,141.87,8.87276754]
[1763521663051,9.78882769,141.91,141.88,8.87276754]
[1763521663265,9.78882769,141.91,141.88,9.38276754]
[1763521663553,10.50882769,141.91,141.88,8.87276754]
[1763521664268,9.78882769,141.91,141.88,8.87276754]
[1763521665151,10.50882769,141.91,141.88,8.87276754]
[1763521665556,9.78882769,141.91,141.88,8.87276754]
[1763521666182,10.50882769,141.91,141.88,8.87276754]
[1763521666480,10.50882769,141.91,141.87,8.87276754]
[1763521667076,10.50882769,141.91,141.88,8.87276754]
[1763521667281,10.50882769,141.91,141.87,8.87276754]
[1763521667586,9.78882769,141.91,141.88,8.87276754]
[1763521668350,9.78882769,141.92,141.9,8.87276754]
[1763521668758,9.78882769,141.92,141.9,5.31287885]
[1763521669649,9.78882769,141.92,141.83,36.24192]
[1763521669855,0.72,141.91,141.88,5.31287885]
[1763521672286,9.78882769,141.92,141.88,5.31287885]
[1763521672474,10.50882769,141.92,141.88,5.31287885]
[1763521673060,0.72,141.91,141.88,5.31287885]
[1763521674483,18.84096,141.93,141.89,5.31287885]
[1763521674790,23.04096,141.93,141.89,5.31287885]
[1763521675083,23.04096,141.93,141.89,5.82287885]
[1763521675579,0.72,141.95,141.91,5.31287885]
[1763521675770,4.92,141.95,141.92,5.31287885]
[1763521676170,0.72,141.94,141.9,0.51]
[1763521676582,0.72,141.94,141.92,5.31287885]
[1763521677288,0.72,141.94,141.91,5.31287885]
[1763521678166,0.72,141.97,141.93,5.31287885]
[1763521678369,13.98882769,141.99,141.94,5.31287885]
[1763521678580,13.98882769,141.99,141.95,5.31287885]
[1763521678893,0.72,142.0,141.96,5.31287885]
[1763521679472,9.78882769,141.99,141.95,5.31287885]
[1763521679966,0.72,141.98,141.95,5.31287885]
[1763521681085,9.78882769,141.97,141.89,15.61170654]
[1763521681392,9.78882769,141.97,141.93,5.31287885]
[1763521681589,0.72,141.96,141.93,5.31287885]
[1763521681888,0.72,141.96,141.92,5.31287885]
[1763521682074,0.72,141.96,141.93,5.31287885]
[1763521684072,9.78882769,141.99,141.95,5.31287885]
[1763521684277,0.72,141.98,141.95,5.31287885]
[1763521684474,0.72,141.98,141.94,5.31287885]
[1763521684475,9.78882769,141.97,141.94,5.31287885]
[1763521684771,9.78882769,141.97,141.95,5.31287885]
[1763521685492,4.2,142.01,141.96,5.82287885]
[1763521685695,0.72,142.01,141.98,5.31287885]
[1763521685994,9.78882769,142.01,141.99,5.31287885]
[1763521686376,9.78882769,142.02,141.99,5.31287885]
[1763521686579,9.78882769,142.02,141.97,0.51]
[1763521686580,10.50882769,142.02,142.0,5.31287885]
[1763521686785,9.78882769,142.03,142.0,5.31287885]
[1763521686979,10.50882769,142.03,142.01,5.31287885]
[1763521687370,0.72,142.02,142.0,5.31287885]
[1763521687778,10.50882769,142.03,142.0,5.31287885]
[1763521687975,9.78882769,142.04,142.0,5.31287885]
[1763521688199,10.50882769,142.04,142.01,5.31287885]
[1763521688396,22.32096,142.06,141.96,4.2]
[1763521688397,0.72,142.03,142.0,5.31287885]
[1763521688695,0.72,142.03,141.99,5.31287885]
[1763521688904,0.72,142.03,142.0,5.31287885]
[1763521690378,10.50882769,142.05,142.01,5.82287885]
[1763521690715,5.31287885,142.07,142.04,5.31287885]
[1763521690716,9.78882769,142.07,142.04,5.31287885]
[1763521690893,9.78882769,142.07,142.05,5.31287885]
[1763521691209,0.72,142.07,142.05,5.31287885]
[1763521691394,0.72,142.07,142.04,5.31287885]
[1763521691589,0.72,142.07,142.05,5.31287885]
[1763521692688,9.78882769,142.06,142.02,5.31287885]
[1763521692893,9.78882769,142.06,142.04,5.31287885]
[1763521693083,0.69,142.08,142.04,5.31287885]
[1763521693283,10.47882769,142.09,142.04,5.31287885]
[1763521693514,0.69,142.08,142.04,5.31287885]
[1763521693805,0.69,142.08,142.03,5.31287885]
[1763521694008,0.69,142.08,142.02,5.31287885]
[1763521694176,0.69,142.08,142.03,5.31287885]
[1763521694603,0.69,142.08,142.04,5.31287885]
[1763521695788,0.69,142.08,142.01,0.51]
[1763521695983,0.69,142.08,142.03,5.31287885]
[1763521696992,0.69,142.08,142.04,5.31287885]
[1763521697213,9.78882769,142.05,141.98,18.63096]
[1763521697394,9.78882769,142.05,142.01,5.31287885]
[1763521697710,9.78882769,142.05,141.99,4.2]
[1763521697711,0.69,142.04,142.0,5.31287885]
[1763521698511,0.69,142.04,142.02,5.31287885]
[1763521698704,0.69,142.04,142.01,5.31287885]
[1763521699211,0.69,142.04,142.02,5.31287885]
[1763521700494,0.69,142.04,142.01,5.31287885]
[1763521700698,9.78882769,142.03,142.0,5.31287885]
[1763521701104,0.69,142.02,142.0,5.31287885]
[1763521701794,0.69,142.02,141.99,5.31287885]
[1763521702113,10.49882769,142.03,142.0,5.31287885]
[1763521702312,0.71,142.02,142.0,5.31287885]
[1763521703824,10.49882769,142.03,142.0,5.31287885]
[1763521703999,0.71,142.02,142.0,5.31287885]
[1763521704611,0.71,142.02,141.99,5.31287885]
[1763521705207,0.71,142.02,142.0,5.31287885]
[1763521709112,0.71,142.02,141.96,4.2]
[1763521709113,0.71,142.02,141.96,4.71]
[1763521709421,0.71,142.02,141.99,5.31287885]
[1763521711337,0.71,142.02,142.0,5.31287885]
[1763521711828,9.78882769,142.01,141.96,4.71]
[1763521712003,9.78882769,142.01,141.97,5.31287885]
[1763521712207,0.71,142.0,141.97,5.31287885]
[1763521712943,0.71,142.0,141.98,5.31287885]
[1763521714427,104.3,142.1,141.99,5.31287885]
[1763521714629,0.71,142.04,142.02,5.31287885]
[1763521714929,0.71,142.04,142.01,2.29123883]
[1763521718330,0.71,142.04,142.02,2.29123883]
[1763521718830,13.98882769,142.06,142.03,2.29123883]
[1763521719135,10.49882769,142.06,142.04,2.29123883]
[1763521719810,10.49882769,142.06,142.01,0.51]
[1763521720011,10.49882769,142.06,142.04,2.29123883]
[1763521721448,10.49882769,142.06,142.01,0.51]
[1763521721636,10.49882769,142.06,142.04,2.29123883]
[1763521722735,0.66,142.05,142.04,2.29123883]
[1763521723238,9.78882769,142.06,142.04,2.29123883]
[1763521723537,10.44882769,142.06,142.04,2.29123883]
[1763521723938,9.78882769,142.06,142.03,2.29123883]
[1763521724155,0.66,142.05,142.02,2.29123883]
[1763521724636,0.66,142.05,141.99,4.2]
[1763521724831,0.66,142.05,142.03,2.29123883]
[1763521727033,9.78882769,142.09,142.04,2.80123883]
[1763521727218,9.78882769,142.09,142.08,2.29123883]
[1763521727219,0.66,142.09,142.08,2.29123883]
[1763521727420,0.2,142.11,142.08,2.29123883]
[1763521727622,0.2,142.11,142.1,2.29123883]
[1763521730938,0.2,142.11,142.1,3.57506436]
[1763521732923,0.2,142.11,142.1,8.85257539]
[1763521733132,0.2,142.11,142.1,9.36257539]
[1763521735039,0.2,142.11,142.1,8.85257539]
[1763521735226,0.2,142.11,142.1,9.36257539]
[1763521735857,0.2,142.11,142.1,27.48353539]
[1763521736146,0.2,142.14,142.1,27.48353539]
[1763521736343,0.2,142.14,142.13,8.85257539]
[1763521737050,0.2,142.14,142.13,9.36257539]
[1763521737738,0.2,142.14,142.13,8.85257539]
[1763521738046,0.2,142.14,142.13,9.36257539]
[1763521740230,0.2,142.14,142.13,37.27236308]
[1763521740430,0.2,142.17,142.16,8.85257539]
[1763521740656,0.2,142.17,142.16,13.05257539]
[1763521740951,0.2,142.17,142.16,13.56257539]
[1763521742053,0.2,142.17,142.16,22.83096]
[1763521742248,0.2,142.17,142.16,31.68353539]
[1763521743150,0.2,142.22,142.16,31.68353539]
[1763521743358,0.2,142.22,142.18,8.85257539]
[1763521743743,0.2,142.22,142.18,9.36257539]
[1763521744433,0.86,142.22,142.18,13.56257539]
[1763521745655,0.2,142.22,142.16,20.9421329]
[1763521745858,0.86,142.19,142.11,22.14895798]
[1763521746043,0.86,142.19,142.16,8.85257539]
[1763521746248,0.86,142.19,142.18,8.85257539]
[1763521746456,0.86,142.19,142.16,4.2]
[1763521746647,0.86,142.19,142.18,8.85257539]
[1763521749364,0.2,142.19,142.18,8.85257539]
[1763521749569,0.86,142.19,142.18,8.85257539]
[1763521754771,0.86,142.19,142.18,3.57169583]
[1763521754972,0.86,142.19,142.16,4.2]
[1763521755151,0.2,142.19,142.18,3.57169583]
[1763521755668,0.89,142.19,142.18,3.57169583]
[1763521756782,0.89,142.19,142.16,7.77169583]
[1763521757075,0.89,142.19,142.16,3.57169583]
[1763521757076,0.69,142.18,142.16,3.57169583]
[1763521757681,0.69,142.18,142.15,4.2]
[1763521757970,0.69,142.18,142.17,3.57169583]
[1763521759147,0.2,142.19,142.17,4.08169583]
[1763521759353,0.2,142.19,142.18,3.57169583]
[1763521759770,0.89,142.19,142.16,3.57169583]
[1763521759974,0.89,142.19,142.15,7.77169583]
[1763521760149,0.69,142.18,142.15,7.77169583]
[1763521760648,0.69,142.18,142.16,3.57169583]
[1763521761871,0.69,142.18,142.15,4.2]
[1763521761872,0.69,142.18,142.17,3.57169583]
[1763521762057,0.2,142.19,142.17,3.57169583]
[1763521762372,0.88,142.19,142.17,3.57169583]
[1763521762858,0.68,142.18,142.17,3.57169583]
[1763521765574,0.68,142.18,142.16,3.57169583]
[1763521768962,0.68,142.18,142.14,7.77169583]
[1763521769162,9.78882769,142.17,142.14,3.57169583]